[Event "FIDE World Rapid Chess Championship 2021"]
[White "Szpar, Milosz"]
[Black "Carlsson, Pontus"]
[WhiteFideId "1184989"]
[BlackFideId "1705814"]
[WhiteElo "2315"]
[BlackElo "2436"]
[Result "1-0"]
[Round "13"]
[TimeControl "900+10"]
[Date "2021.12.28"]
[WhiteClock "0:03:54"]
[BlackClock "0:00:12"]

1. e4 {[%clk 0:15:00]}  c5 {[%clk 0:15:00]} 2. Nf3 {[%clk 0:15:42]}  d6 {[%clk 0:15:51]} 3. d4 {[%clk 0:15:42]}  Nf6 {[%clk 0:15:51]} 4. Nc3 {[%clk 0:15:42]}  cxd4 {[%clk 0:15:51]} 5. Nxd4 {[%clk 0:15:42]}  g6 {[%clk 0:15:51]} 6. Bc4 {[%clk 0:15:42]}  Bg7 {[%clk 0:15:51]} 7. O-O {[%clk 0:15:42]}  O-O {[%clk 0:15:51]} 8. h3 {[%clk 0:15:42]}  Nc6 {[%clk 0:15:51]} 9. Nf3 {[%clk 0:15:42]}  Na5 {[%clk 0:15:51]} 10. Bb3 {[%clk 0:14:14]}  b6 {[%clk 0:15:29]} 11. Re1 {[%clk 0:14:14]}  Bb7 {[%clk 0:12:51]} 12. Bg5 {[%clk 0:14:16]}  h6 {[%clk 0:12:51]} 13. Bf4 {[%clk 0:14:16]}  Rc8 {[%clk 0:11:58]} 14. Qe2 {[%clk 0:13:58]}  Rxc3 {[%clk 0:11:58]} 15. bxc3 {[%clk 0:13:58]}  Nxe4 {[%clk 0:11:58]} 16. Rac1 {[%clk 0:14:08]}  e6 {[%clk 0:09:18]} 17. Qd3 {[%clk 0:14:08]}  d5 {[%clk 0:09:18]} 18. Qe3 {[%clk 0:12:42]}  g5 {[%clk 0:08:38]} 19. Be5 {[%clk 0:10:36]}  f6 {[%clk 0:08:38]} 20. Bh2 {[%clk 0:10:36]}  f5 {[%clk 0:08:38]} 21. Be5 {[%clk 0:10:08]}  Bxe5 {[%clk 0:02:06]} 22. Nxe5 {[%clk 0:08:52]}  Qc7 {[%clk 0:02:06]} 23. Qd4 {[%clk 0:08:52]}  Rc8 {[%clk 0:02:06]} 24. Re3 {[%clk 0:08:33]}  Qc5 {[%clk 0:00:13]} 25. Qd1 {[%clk 0:08:33]}  Nf6 {[%clk 0:00:13]} 26. h4 {[%clk 0:08:33]}  f4 {[%clk 0:00:12]} 27. hxg5 {[%clk 0:04:58]}  hxg5 {[%clk 0:00:12]} 28. Rh3 {[%clk 0:04:58]}  Qc7 {[%clk 0:00:12]} 29. Qd4 {[%clk 0:04:58]}  Qg7 {[%clk 0:00:12]} 30. Re1 {[%clk 0:04:58]}  Re8 {[%clk 0:00:12]} 31. g3 {[%clk 0:04:58]}  Nc4 {[%clk 0:00:12]} 32. Nxc4 {[%clk 0:03:54]}  dxc4 {[%clk 0:00:12]} 33. Bxc4 {[%clk 0:03:54]}  Nd5 {[%clk 0:00:12]} 34. Re5 {[%clk 0:03:54]}  Rd8 {[%clk 0:00:12]} 35. Rxg5 {[%clk 0:03:54]}  Qxg5 {[%clk 0:00:12]} 36. Qh8+ {[%clk 0:03:54]}  Kf7 {[%clk 0:00:12]} 37. Rh7+ {[%clk 0:03:54]}  Kg6 {[%clk 0:00:12]} 38. Bd3+ {[%clk 0:03:54]} 1-0


[Site "http://www.Chess.com"]

[Event "FIDE World Rapid Chess Championship 2021"]
[White "Nevednichy, Vladislav"]
[Black "Kuzmicz, Krystian"]
[WhiteFideId "1205730"]
[BlackFideId "1119125"]
[WhiteElo "2425"]
[BlackElo "2314"]
[Result "0-1"]
[Round "13"]
[TimeControl "900+10"]
[Date "2021.12.28"]
[WhiteClock "0:01:21"]
[BlackClock "0:01:06"]

1. e4 {[%clk 0:15:00]}  c5 {[%clk 0:15:00]} 2. Nf3 {[%clk 0:15:00]}  e6 {[%clk 0:15:00]} 3. d4 {[%clk 0:15:00]}  cxd4 {[%clk 0:15:00]} 4. Nxd4 {[%clk 0:15:00]}  Nf6 {[%clk 0:15:00]} 5. Nc3 {[%clk 0:15:00]}  Nc6 {[%clk 0:15:00]} 6. a3 {[%clk 0:15:00]}  d6 {[%clk 0:15:55]} 7. Nb3 {[%clk 0:15:50]}  Be7 {[%clk 0:15:55]} 8. f4 {[%clk 0:15:50]}  O-O {[%clk 0:15:55]} 9. Bd3 {[%clk 0:15:50]}  e5 {[%clk 0:15:55]} 10. O-O {[%clk 0:15:50]}  exf4 {[%clk 0:13:38]} 11. Bxf4 {[%clk 0:16:14]}  Be6 {[%clk 0:13:38]} 12. Kh1 {[%clk 0:16:14]}  Ne5 {[%clk 0:11:24]} 13. Nd4 {[%clk 0:15:48]}  Qb6 {[%clk 0:11:18]} 14. Nf5 {[%clk 0:15:48]}  Bxf5 {[%clk 0:10:31]} 15. exf5 {[%clk 0:14:17]}  Qxb2 {[%clk 0:10:31]} 16. Nb5 {[%clk 0:14:17]}  Nxd3 {[%clk 0:10:31]} 17. Qxd3 {[%clk 0:14:17]}  Rfc8 {[%clk 0:10:31]} 18. c4 {[%clk 0:14:17]}  Ng4 {[%clk 0:04:14]} 19. Qf3 {[%clk 0:12:55]}  Ne5 {[%clk 0:04:14]} 20. Bxe5 {[%clk 0:12:55]}  dxe5 {[%clk 0:04:14]} 21. Qxb7 {[%clk 0:10:06]}  Bf8 {[%clk 0:02:35]} 22. Rab1 {[%clk 0:10:06]}  Qe2 {[%clk 0:02:35]} 23. Rbc1 {[%clk 0:10:06]}  a6 {[%clk 0:02:35]} 24. Rfe1 {[%clk 0:03:54]}  Qf2 {[%clk 0:02:14]} 25. Nc3 {[%clk 0:03:54]}  Bxa3 {[%clk 0:02:14]} 26. Ne4 {[%clk 0:03:54]}  Qxf5 {[%clk 0:02:14]} 27. Ra1 {[%clk 0:03:54]}  Bf8 {[%clk 0:01:01]} 28. Rf1 {[%clk 0:01:01]}  Qg6 {[%clk 0:01:01]} 29. Ng3 {[%clk 0:01:01]}  Rab8 {[%clk 0:01:01]} 30. Qd5 {[%clk 0:01:01]}  Rc5 {[%clk 0:01:01]} 31. Qd7 {[%clk 0:01:01]}  a5 {[%clk 0:01:01]} 32. Rac1 {[%clk 0:01:01]}  Rbc8 {[%clk 0:01:01]} 33. Nf5 {[%clk 0:01:01]}  Qe6 {[%clk 0:00:37]} 34. Qxe6 {[%clk 0:00:18]}  fxe6 {[%clk 0:00:37]} 35. Ne3 {[%clk 0:00:18]}  a4 {[%clk 0:00:37]} 36. Ra1 {[%clk 0:00:18]}  Ra5 {[%clk 0:00:37]} 37. Ra2 {[%clk 0:00:18]}  a3 {[%clk 0:00:37]} 38. g3 {[%clk 0:00:18]}  Bc5 {[%clk 0:00:37]} 39. Nc2 {[%clk 0:00:18]}  Rd8 {[%clk 0:00:37]} 40. Na1 {[%clk 0:00:18]}  Rd3 {[%clk 0:00:37]} 41. Re1 {[%clk 0:00:18]}  Bd4 {[%clk 0:00:37]} 42. Kg2 {[%clk 0:00:18]}  Bb2 {[%clk 0:00:37]} 43. Re2 {[%clk 0:00:18]}  Rc5 {[%clk 0:00:37]} 44. Rc2 {[%clk 0:00:18]}  e4 {[%clk 0:00:37]} 45. Kf2 {[%clk 0:01:21]}  Rf5+ {[%clk 0:01:06]} 46. Kg2 {[%clk 0:01:21]}  e3 {[%clk 0:01:06]} 0-1


[Site "http://www.Chess.com"]

[Event "FIDE World Rapid Chess Championship 2021"]
[White "Cuenca Jimenez, Jose Fernando"]
[Black "Petrovskyi, Vadym"]
[WhiteFideId "2255570"]
[BlackFideId "14165210"]
[WhiteElo "2421"]
[BlackElo "2282"]
[Result "1-0"]
[Round "13"]
[TimeControl "900+10"]
[Date "2021.12.28"]
[WhiteClock "0:00:35"]
[BlackClock "0:01:26"]

1. d4 {[%clk 0:15:00]}  Nf6 {[%clk 0:15:00]} 2. c4 {[%clk 0:15:00]}  e6 {[%clk 0:15:00]} 3. Nf3 {[%clk 0:15:00]}  Bb4+ {[%clk 0:15:00]} 4. Bd2 {[%clk 0:15:00]}  Qe7 {[%clk 0:15:00]} 5. g3 {[%clk 0:15:44]}  O-O {[%clk 0:16:04]} 6. Bg2 {[%clk 0:15:44]}  Nc6 {[%clk 0:16:04]} 7. O-O {[%clk 0:15:44]}  Bxd2 {[%clk 0:16:04]} 8. Qxd2 {[%clk 0:15:44]}  d6 {[%clk 0:16:04]} 9. Nc3 {[%clk 0:15:44]}  a5 {[%clk 0:16:04]} 10. Rfe1 {[%clk 0:15:44]}  e5 {[%clk 0:16:04]} 11. Nd5 {[%clk 0:15:44]}  Qd8 {[%clk 0:16:04]} 12. dxe5 {[%clk 0:14:43]}  dxe5 {[%clk 0:15:33]} 13. Rad1 {[%clk 0:14:43]}  Re8 {[%clk 0:15:33]} 14. Qc3 {[%clk 0:14:43]}  Rb8 {[%clk 0:15:34]} 15. a3 {[%clk 0:12:20]}  h6 {[%clk 0:13:20]} 16. b4 {[%clk 0:12:20]}  axb4 {[%clk 0:13:20]} 17. axb4 {[%clk 0:11:30]}  e4 {[%clk 0:11:26]} 18. Nxf6+ {[%clk 0:10:57]}  Qxf6 {[%clk 0:11:10]} 19. Nd4 {[%clk 0:06:31]}  Nxd4 {[%clk 0:11:10]} 20. Rxd4 {[%clk 0:06:39]}  Bf5 {[%clk 0:08:19]} 21. Red1 {[%clk 0:06:39]}  e3 {[%clk 0:08:19]} 22. fxe3 {[%clk 0:06:39]}  Qe5 {[%clk 0:08:19]} 23. e4 {[%clk 0:04:46]}  Bg6 {[%clk 0:07:59]} 24. c5 {[%clk 0:04:46]}  Ra8 {[%clk 0:07:59]} 25. Qd2 {[%clk 0:04:46]}  Qe6 {[%clk 0:07:59]} 26. Qf4 {[%clk 0:04:46]}  Ra2 {[%clk 0:07:59]} 27. Bf3 {[%clk 0:04:38]}  Re7 {[%clk 0:06:33]} 28. Bg4 {[%clk 0:03:54]}  Qe5 {[%clk 0:04:57]} 29. Qxe5 {[%clk 0:03:54]}  Rxe5 {[%clk 0:04:57]} 30. Bf3 {[%clk 0:03:54]}  Rb2 {[%clk 0:04:57]} 31. Rd8+ {[%clk 0:03:54]}  Kh7 {[%clk 0:04:57]} 32. R1d4 {[%clk 0:03:54]}  b6 {[%clk 0:04:57]} 33. cxb6 {[%clk 0:03:54]}  cxb6 {[%clk 0:04:57]} 34. Rb8 {[%clk 0:03:54]}  b5 {[%clk 0:05:12]} 35. g4 {[%clk 0:02:03]}  Rc2 {[%clk 0:03:42]} 36. Kf2 {[%clk 0:00:36]}  Rc4 {[%clk 0:03:42]} 37. Rxc4 {[%clk 0:00:44]}  bxc4 {[%clk 0:01:10]} 38. Ke3 {[%clk 0:00:44]}  c3 {[%clk 0:01:10]} 39. Rc8 {[%clk 0:00:44]}  Rb5 {[%clk 0:01:10]} 40. Rc4 {[%clk 0:00:44]}  f6 {[%clk 0:01:10]} 41. Kd3 {[%clk 0:00:44]}  Bf7 {[%clk 0:01:10]} 42. Rc7 {[%clk 0:00:44]}  Be6 {[%clk 0:01:10]} 43. Kxc3 {[%clk 0:00:44]}  Kg6 {[%clk 0:01:10]} 44. Rc5 {[%clk 0:00:19]}  Rb8 {[%clk 0:01:11]} 45. h4 {[%clk 0:00:19]}  Bd7 {[%clk 0:01:11]} 46. h5+ {[%clk 0:00:19]}  Kf7 {[%clk 0:01:11]} 47. e5 {[%clk 0:00:19]}  fxe5 {[%clk 0:01:11]} 48. Rxe5 {[%clk 0:00:19]}  Kf6 {[%clk 0:01:11]} 49. Rc5 {[%clk 0:00:19]}  Ke7 {[%clk 0:01:11]} 50. g5 {[%clk 0:00:19]}  Kd6 {[%clk 0:01:11]} 51. gxh6 {[%clk 0:00:19]}  gxh6 {[%clk 0:01:11]} 52. Rd5+ {[%clk 0:00:19]}  Kc7 {[%clk 0:01:11]} 53. Rd4 {[%clk 0:00:19]}  Rb5 {[%clk 0:01:19]} 54. Rd5 {[%clk 0:00:08]}  Rb8 {[%clk 0:01:19]} 55. Ra5 {[%clk 0:00:08]}  Rb6 {[%clk 0:01:19]} 56. Ra7+ {[%clk 0:00:08]}  Kd6 {[%clk 0:01:19]} 57. Rb7 {[%clk 0:00:08]}  Ra6 {[%clk 0:01:19]} 58. Kd4 {[%clk 0:00:08]}  Ra1 {[%clk 0:01:19]} 59. Rb6+ {[%clk 0:00:08]}  Kc7 {[%clk 0:01:19]} 60. Rxh6 {[%clk 0:00:08]}  Rd1+ {[%clk 0:01:19]} 61. Kc3 {[%clk 0:00:08]}  Bf5 {[%clk 0:01:19]} 62. Rf6 {[%clk 0:00:08]}  Bb1 {[%clk 0:01:19]} 63. b5 {[%clk 0:00:08]}  Kd7 {[%clk 0:01:19]} 64. b6 {[%clk 0:00:35]}  Ke7 {[%clk 0:01:26]} 65. Rf4 {[%clk 0:00:35]} 1-0


[Site "http://www.Chess.com"]

[Event "FIDE World Rapid Chess Championship 2021"]
[White "Saraci, Nderim"]
[Black "Klimkowski, Jan"]
[WhiteFideId "6351921"]
[BlackFideId "21856222"]
[WhiteElo "2414"]
[BlackElo "2211"]
[Result "1-0"]
[Round "13"]
[TimeControl "900+10"]
[Date "2021.12.28"]
[WhiteClock "0:01:05"]
[BlackClock "0:01:22"]

1. d4 {[%clk 0:15:00]}  Nf6 {[%clk 0:15:00]} 2. Nf3 {[%clk 0:15:00]}  e6 {[%clk 0:15:00]} 3. c4 {[%clk 0:15:00]}  Bb4+ {[%clk 0:15:00]} 4. Nbd2 {[%clk 0:15:00]}  a5 {[%clk 0:15:47]} 5. g3 {[%clk 0:15:59]}  b6 {[%clk 0:15:47]} 6. Bg2 {[%clk 0:15:59]}  Bb7 {[%clk 0:15:47]} 7. O-O {[%clk 0:15:59]}  O-O {[%clk 0:15:47]} 8. Qc2 {[%clk 0:15:59]}  c5 {[%clk 0:15:47]} 9. Rd1 {[%clk 0:15:59]}  cxd4 {[%clk 0:15:09]} 10. Nxd4 {[%clk 0:11:14]}  Bxg2 {[%clk 0:15:09]} 11. Kxg2 {[%clk 0:11:14]}  Qc8 {[%clk 0:15:09]} 12. b3 {[%clk 0:10:43]}  Nc6 {[%clk 0:10:36]} 13. Bb2 {[%clk 0:10:43]}  Nxd4 {[%clk 0:09:43]} 14. Bxd4 {[%clk 0:08:58]}  Qc6+ {[%clk 0:09:43]} 15. Nf3 {[%clk 0:08:58]}  Be7 {[%clk 0:09:16]} 16. Rac1 {[%clk 0:07:54]}  d6 {[%clk 0:09:16]} 17. Kg1 {[%clk 0:07:54]}  h6 {[%clk 0:05:59]} 18. a4 {[%clk 0:07:50]}  e5 {[%clk 0:05:59]} 19. Bb2 {[%clk 0:07:50]}  Rad8 {[%clk 0:05:59]} 20. Ba3 {[%clk 0:07:09]}  Rd7 {[%clk 0:04:24]} 21. Nd2 {[%clk 0:07:09]}  Rfd8 {[%clk 0:04:24]} 22. e4 {[%clk 0:06:09]}  Bf8 {[%clk 0:04:01]} 23. Re1 {[%clk 0:06:09]}  Qb7 {[%clk 0:04:01]} 24. Bb2 {[%clk 0:06:09]}  g6 {[%clk 0:03:19]} 25. Nb1 {[%clk 0:04:04]}  Ne8 {[%clk 0:03:19]} 26. Nc3 {[%clk 0:04:00]}  Nc7 {[%clk 0:03:19]} 27. Rcd1 {[%clk 0:04:00]}  Bg7 {[%clk 0:03:19]} 28. Nd5 {[%clk 0:04:00]}  Nxd5 {[%clk 0:03:19]} 29. Rxd5 {[%clk 0:04:00]}  Qc6 {[%clk 0:03:19]} 30. Red1 {[%clk 0:04:00]}  h5 {[%clk 0:03:19]} 31. Qd3 {[%clk 0:03:15]}  Qc7 {[%clk 0:03:05]} 32. Bc1 {[%clk 0:03:15]}  Qc6 {[%clk 0:03:05]} 33. Bg5 {[%clk 0:03:15]}  Re8 {[%clk 0:03:05]} 34. Be3 {[%clk 0:03:15]}  Bf8 {[%clk 0:03:05]} 35. Rb5 {[%clk 0:02:18]}  Rb8 {[%clk 0:02:20]} 36. c5 {[%clk 0:02:18]}  f5 {[%clk 0:02:20]} 37. exf5 {[%clk 0:02:18]}  d5 {[%clk 0:02:20]} 38. cxb6 {[%clk 0:02:18]}  e4 {[%clk 0:02:20]} 39. Qd4 {[%clk 0:00:45]}  Bg7 {[%clk 0:02:02]} 40. Qc5 {[%clk 0:00:45]}  Qxc5 {[%clk 0:02:02]} 41. Bxc5 {[%clk 0:00:45]}  gxf5 {[%clk 0:02:02]} 42. Bd4 {[%clk 0:00:45]}  Bf8 {[%clk 0:02:02]} 43. Rxa5 {[%clk 0:00:45]}  Kf7 {[%clk 0:02:02]} 44. Rb5 {[%clk 0:00:45]}  Ra8 {[%clk 0:02:02]} 45. a5 {[%clk 0:00:45]}  Rb7 {[%clk 0:02:02]} 46. Rxd5 {[%clk 0:01:05]}  Bb4 {[%clk 0:01:22]} 47. Rxf5+ {[%clk 0:01:05]}  Kg6 {[%clk 0:01:22]} 48. Rb5 {[%clk 0:01:05]}  Rxa5 {[%clk 0:01:22]} 49. Rxb4 {[%clk 0:01:05]} 1-0


[Site "http://www.Chess.com"]

[Event "FIDE World Rapid Chess Championship 2021"]
[White "Baum, Jonasz"]
[Black "Nguyen, Thai Dai Van"]
[WhiteFideId "1195360"]
[BlackFideId "358878"]
[WhiteElo "2343"]
[BlackElo "2488"]
[Result "1/2-1/2"]
[Round "13"]
[TimeControl "900+10"]
[Date "2021.12.28"]
[WhiteClock "0:01:52"]
[BlackClock "0:00:49"]

1. d4 {[%clk 0:15:00]}  d5 {[%clk 0:15:00]} 2. c4 {[%clk 0:15:00]}  e6 {[%clk 0:15:00]} 3. Nf3 {[%clk 0:15:41]}  Nf6 {[%clk 0:15:49]} 4. g3 {[%clk 0:15:41]}  Bb4+ {[%clk 0:15:49]} 5. Nc3 {[%clk 0:15:41]}  O-O {[%clk 0:15:49]} 6. Bg2 {[%clk 0:15:41]}  dxc4 {[%clk 0:15:49]} 7. O-O {[%clk 0:15:41]}  Nbd7 {[%clk 0:15:49]} 8. Qc2 {[%clk 0:15:41]}  Rb8 {[%clk 0:14:58]} 9. Rd1 {[%clk 0:15:41]}  h6 {[%clk 0:14:54]} 10. Ne5 {[%clk 0:11:24]}  Nxe5 {[%clk 0:14:54]} 11. dxe5 {[%clk 0:11:24]}  Nd7 {[%clk 0:14:54]} 12. Nb5 {[%clk 0:11:24]}  a6 {[%clk 0:13:21]} 13. Qxc4 {[%clk 0:10:47]}  Nxe5 {[%clk 0:13:21]} 14. Qb3 {[%clk 0:10:41]}  Qe7 {[%clk 0:12:35]} 15. Bf4 {[%clk 0:06:02]}  Bd7 {[%clk 0:12:43]} 16. Nxc7 {[%clk 0:06:09]}  Ng6 {[%clk 0:10:27]} 17. Nd5 {[%clk 0:05:09]}  exd5 {[%clk 0:10:27]} 18. Bxb8 {[%clk 0:05:09]}  Rxb8 {[%clk 0:10:27]} 19. Bxd5 {[%clk 0:05:09]}  Be8 {[%clk 0:06:48]} 20. Rac1 {[%clk 0:04:44]}  a5 {[%clk 0:06:48]} 21. a3 {[%clk 0:04:44]}  Bd6 {[%clk 0:06:48]} 22. Qb6 {[%clk 0:04:44]}  Ne5 {[%clk 0:06:47]} 23. Qxa5 {[%clk 0:03:45]}  b6 {[%clk 0:06:47]} 24. Qd2 {[%clk 0:03:45]}  Rd8 {[%clk 0:06:47]} 25. Qc2 {[%clk 0:02:28]}  h5 {[%clk 0:04:54]} 26. Qe4 {[%clk 0:02:28]}  Qf6 {[%clk 0:04:54]} 27. Qf4 {[%clk 0:02:28]}  Qe7 {[%clk 0:04:54]} 28. Qe4 {[%clk 0:02:28]}  Qf6 {[%clk 0:03:56]} 29. Qf4 {[%clk 0:01:44]}  Qe7 {[%clk 0:00:49]} 30. Qe4 {[%clk 0:01:52]} 1/2-1/2


[Site "http://www.Chess.com"]

[Event "FIDE World Rapid Chess Championship 2021"]
[White "Krasenkow, Michal"]
[Black "Aziz, Husain"]
[WhiteFideId "1113100"]
[BlackFideId "12100293"]
[WhiteElo "2430"]
[BlackElo "2430"]
[Result "1-0"]
[Round "13"]
[TimeControl "900+10"]
[Date "2021.12.28"]
[WhiteClock "0:09:33"]
[BlackClock "0:08:13"]

1. c4 {[%clk 0:15:00]}  e6 {[%clk 0:15:00]} 2. Nc3 {[%clk 0:15:00]}  d5 {[%clk 0:15:00]} 3. d4 {[%clk 0:15:57]}  Nf6 {[%clk 0:15:11]} 4. cxd5 {[%clk 0:15:57]}  exd5 {[%clk 0:15:11]} 5. Bg5 {[%clk 0:15:57]}  c6 {[%clk 0:15:11]} 6. e3 {[%clk 0:15:57]}  Be7 {[%clk 0:15:11]} 7. Bd3 {[%clk 0:15:57]}  O-O {[%clk 0:15:11]} 8. Qc2 {[%clk 0:16:03]}  h6 {[%clk 0:15:11]} 9. Bh4 {[%clk 0:16:03]}  Ne8 {[%clk 0:15:11]} 10. Bxe7 {[%clk 0:16:15]}  Qxe7 {[%clk 0:13:47]} 11. Nxd5 {[%clk 0:16:15]}  cxd5 {[%clk 0:13:47]} 12. Qxc8 {[%clk 0:16:15]}  Nc6 {[%clk 0:13:47]} 13. Qf5 {[%clk 0:16:15]}  Nf6 {[%clk 0:13:47]} 14. a3 {[%clk 0:15:29]}  Nxd4 {[%clk 0:13:47]} 15. Qf4 {[%clk 0:15:29]}  Ne6 {[%clk 0:13:47]} 16. Qe5 {[%clk 0:15:29]}  d4 {[%clk 0:10:50]} 17. exd4 {[%clk 0:14:39]}  Rad8 {[%clk 0:10:50]} 18. Ne2 {[%clk 0:14:39]}  Rd5 {[%clk 0:09:31]} 19. Qe3 {[%clk 0:14:25]}  Qd6 {[%clk 0:09:31]} 20. Rd1 {[%clk 0:14:25]}  Rd8 {[%clk 0:09:31]} 21. Bc4 {[%clk 0:13:17]}  Nxd4 {[%clk 0:07:55]} 22. Nxd4 {[%clk 0:10:22]}  Rxd4 {[%clk 0:08:03]} 23. Rxd4 {[%clk 0:10:22]}  Qxd4 {[%clk 0:08:03]} 24. Qxd4 {[%clk 0:10:22]}  Rxd4 {[%clk 0:08:03]} 25. Ba2 {[%clk 0:10:22]}  Ne4 {[%clk 0:08:03]} 26. f3 {[%clk 0:10:22]}  Rd2 {[%clk 0:08:13]} 27. Bb1 {[%clk 0:09:33]} 1-0


[Site "http://www.Chess.com"]

[Event "FIDE World Rapid Chess Championship 2021"]
[White "Tologontegin, Semetey"]
[Black "Dragnev, Valentin"]
[WhiteFideId "13800574"]
[BlackFideId "1634852"]
[WhiteElo "2300"]
[BlackElo "2409"]
[Result "1/2-1/2"]
[Round "13"]
[TimeControl "900+10"]
[Date "2021.12.28"]
[WhiteClock "0:00:19"]
[BlackClock "0:02:01"]

1. d4 {[%clk 0:15:00]}  Nf6 {[%clk 0:15:00]} 2. Nc3 {[%clk 0:15:00]}  d5 {[%clk 0:15:00]} 3. Bf4 {[%clk 0:15:00]}  c5 {[%clk 0:15:00]} 4. e3 {[%clk 0:16:18]}  cxd4 {[%clk 0:15:56]} 5. exd4 {[%clk 0:16:18]}  a6 {[%clk 0:15:56]} 6. Bd3 {[%clk 0:16:18]}  Nc6 {[%clk 0:15:56]} 7. Nge2 {[%clk 0:16:18]}  Bg4 {[%clk 0:15:56]} 8. f3 {[%clk 0:16:18]}  Bh5 {[%clk 0:15:56]} 9. g4 {[%clk 0:16:18]}  Bg6 {[%clk 0:15:56]} 10. h4 {[%clk 0:16:18]}  e6 {[%clk 0:15:56]} 11. h5 {[%clk 0:16:18]}  Bxd3 {[%clk 0:15:56]} 12. Qxd3 {[%clk 0:16:18]}  Bd6 {[%clk 0:15:56]} 13. g5 {[%clk 0:16:18]}  Ng8 {[%clk 0:15:08]} 14. Bxd6 {[%clk 0:15:23]}  Qxd6 {[%clk 0:15:08]} 15. O-O-O {[%clk 0:15:23]}  Nge7 {[%clk 0:15:08]} 16. Qd2 {[%clk 0:05:23]}  O-O-O {[%clk 0:14:05]} 17. Nf4 {[%clk 0:02:22]}  Nf5 {[%clk 0:14:05]} 18. Nce2 {[%clk 0:02:22]}  Kb8 {[%clk 0:14:05]} 19. Kb1 {[%clk 0:02:22]}  Rhe8 {[%clk 0:14:05]} 20. g6 {[%clk 0:02:40]}  hxg6 {[%clk 0:12:18]} 21. hxg6 {[%clk 0:02:40]}  f6 {[%clk 0:12:18]} 22. Rh5 {[%clk 0:02:40]}  Nfe7 {[%clk 0:12:18]} 23. Rh7 {[%clk 0:02:40]}  Rg8 {[%clk 0:12:18]} 24. Rg1 {[%clk 0:02:14]}  e5 {[%clk 0:10:40]} 25. Nh5 {[%clk 0:02:14]}  Nf5 {[%clk 0:10:40]} 26. Qd3 {[%clk 0:02:14]}  Nce7 {[%clk 0:10:36]} 27. Neg3 {[%clk 0:01:36]}  Nxd4 {[%clk 0:06:49]} 28. Nxg7 {[%clk 0:01:33]}  Rc8 {[%clk 0:06:49]} 29. N7f5 {[%clk 0:01:33]}  Ndxf5 {[%clk 0:06:49]} 30. Nxf5 {[%clk 0:01:33]}  Qc5 {[%clk 0:06:49]} 31. Rc1 {[%clk 0:01:33]}  Nxg6 {[%clk 0:06:49]} 32. Nh6 {[%clk 0:01:33]}  Nf4 {[%clk 0:06:13]} 33. Qb3 {[%clk 0:00:53]}  Qc6 {[%clk 0:06:13]} 34. Nxg8 {[%clk 0:00:53]}  Rxg8 {[%clk 0:06:13]} 35. Rch1 {[%clk 0:00:53]}  Rg2 {[%clk 0:06:13]} 36. a3 {[%clk 0:00:53]}  Ne6 {[%clk 0:06:13]} 37. Rc1 {[%clk 0:00:53]}  d4 {[%clk 0:05:08]} 38. Rf7 {[%clk 0:00:17]}  Ng5 {[%clk 0:05:08]} 39. Rf8+ {[%clk 0:00:17]}  Ka7 {[%clk 0:05:08]} 40. Qg8 {[%clk 0:00:17]}  Qd7 {[%clk 0:05:08]} 41. Ra8+ {[%clk 0:00:21]}  Kb6 {[%clk 0:03:19]} 42. Qf8 {[%clk 0:00:21]}  Nxf3 {[%clk 0:03:19]} 43. Rc8 {[%clk 0:00:21]}  Nd2+ {[%clk 0:03:19]} 44. Ka1 {[%clk 0:00:21]}  Ne4 {[%clk 0:03:19]} 45. Re1 {[%clk 0:00:21]}  Qd5 {[%clk 0:03:19]} 46. Qe7 {[%clk 0:00:21]}  Ka7 {[%clk 0:02:13]} 47. Qc7 {[%clk 0:00:14]}  d3 {[%clk 0:02:13]} 48. Qb8+ {[%clk 0:00:14]}  Kb6 {[%clk 0:02:13]} 49. Qc7+ {[%clk 0:00:14]}  Ka7 {[%clk 0:02:13]} 50. cxd3 {[%clk 0:00:14]}  Qd4 {[%clk 0:02:13]} 51. Qb8+ {[%clk 0:00:14]}  Kb6 {[%clk 0:02:13]} 52. Qc7+ {[%clk 0:00:14]}  Ka7 {[%clk 0:02:13]} 53. Rb1 {[%clk 0:00:14]}  Nd2 {[%clk 0:02:13]} 54. Qb8+ {[%clk 0:00:14]}  Kb6 {[%clk 0:02:13]} 55. Qc7+ {[%clk 0:00:14]}  Ka7 {[%clk 0:02:13]} 56. Qb8+ {[%clk 0:00:19]}  Kb6 {[%clk 0:02:01]} 57. Rd8 {[%clk 0:00:19]}  Nb3+ {[%clk 0:02:01]} 58. Ka2 {[%clk 0:00:19]}  Nc1+ {[%clk 0:02:01]} 59. Ka1 {[%clk 0:00:19]}  Nb3+ {[%clk 0:02:01]} 60. Ka2 {[%clk 0:00:19]}  Nc1+ {[%clk 0:02:01]} 61. Ka1 {[%clk 0:00:19]}  Nb3+ {[%clk 0:02:01]} 62. Ka2 {[%clk 0:00:19]}  Nc1+ {[%clk 0:02:01]} 63. Ka1 {[%clk 0:00:19]} 1/2-1/2


[Site "http://www.Chess.com"]